[Event "Titled Tuesday Blitz January 17 Late 2023"]
[White "Saya, Ethan"]
[Black "Gardezi, Arsal"]
[WhiteFideId "26095181"]
[BlackFideId "30949521"]
[WhiteElo "2181"]
[BlackElo "2093"]
[Result "1/2-1/2"]
[Round "02"]
[TimeControl "180+2"]
[Date "2023.01.17"]
[WhiteClock "0:01:25"]
[BlackClock "0:00:23"]

1. e4 {[%clk 0:03:00]}  e6 {[%clk 0:02:59]} 2. d4 {[%clk 0:03:00]}  c5 {[%clk 0:02:55]} 3. d5 {[%clk 0:02:57]}  exd5 {[%clk 0:02:55]} 4. exd5 {[%clk 0:02:58]}  d6 {[%clk 0:02:56]} 5. Nf3 {[%clk 0:02:58]}  Nf6 {[%clk 0:02:56]} 6. Bb5+ {[%clk 0:02:58]}  Bd7 {[%clk 0:02:56]} 7. Bxd7+ {[%clk 0:02:57]}  Nbxd7 {[%clk 0:02:56]} 8. O-O {[%clk 0:02:58]}  Be7 {[%clk 0:02:55]} 9. Re1 {[%clk 0:02:55]}  O-O {[%clk 0:02:54]} 10. a4 {[%clk 0:02:54]}  Ng4 {[%clk 0:02:54]} 11. Na3 {[%clk 0:02:52]}  Bf6 {[%clk 0:02:54]} 12. Nc4 {[%clk 0:02:50]}  Qc7 {[%clk 0:02:51]} 13. Bf4 {[%clk 0:02:48]}  Nge5 {[%clk 0:02:45]} 14. Nfxe5 {[%clk 0:02:46]}  Nxe5 {[%clk 0:02:45]} 15. Bxe5 {[%clk 0:02:45]}  Bxe5 {[%clk 0:02:37]} 16. Nxe5 {[%clk 0:02:44]}  dxe5 {[%clk 0:02:38]} 17. d6 {[%clk 0:02:45]}  Qc6 {[%clk 0:02:38]} 18. Rxe5 {[%clk 0:02:43]}  Rad8 {[%clk 0:02:38]} 19. Rd5 {[%clk 0:02:43]}  Rd7 {[%clk 0:02:39]} 20. Qd2 {[%clk 0:02:42]}  Rfd8 {[%clk 0:02:39]} 21. Re1 {[%clk 0:02:43]}  h6 {[%clk 0:02:37]} 22. b3 {[%clk 0:02:38]}  Rxd6 {[%clk 0:02:29]} 23. Rxd6 {[%clk 0:02:38]}  Qxd6 {[%clk 0:02:30]} 24. Qxd6 {[%clk 0:02:38]}  Rxd6 {[%clk 0:02:29]} 25. Kf1 {[%clk 0:02:38]}  Rd2 {[%clk 0:02:25]} 26. Re2 {[%clk 0:02:36]}  Rd1+ {[%clk 0:02:23]} 27. Re1 {[%clk 0:02:36]}  Rd2 {[%clk 0:02:12]} 28. Re8+ {[%clk 0:02:34]}  Kh7 {[%clk 0:02:12]} 29. Re7 {[%clk 0:02:35]}  Rxc2 {[%clk 0:02:01]} 30. Rxb7 {[%clk 0:02:30]}  Rb2 {[%clk 0:01:51]} 31. Rxf7 {[%clk 0:02:28]}  Rxb3 {[%clk 0:01:42]} 32. Rxa7 {[%clk 0:02:27]}  Ra3 {[%clk 0:01:41]} 33. g3 {[%clk 0:02:25]}  c4 {[%clk 0:01:41]} 34. Kg2 {[%clk 0:02:25]}  c3 {[%clk 0:01:35]} 35. Rc7 {[%clk 0:02:24]}  Rxa4 {[%clk 0:01:35]} 36. Rxc3 {[%clk 0:02:24]}  Ra2 {[%clk 0:01:33]} 37. Rc6 {[%clk 0:02:22]}  Rd2 {[%clk 0:01:30]} 38. Ra6 {[%clk 0:02:21]}  Rb2 {[%clk 0:01:30]} 39. Re6 {[%clk 0:02:21]}  Rc2 {[%clk 0:01:28]} 40. Kf3 {[%clk 0:02:20]}  Rb2 {[%clk 0:01:26]} 41. Re2 {[%clk 0:02:19]}  Rb3+ {[%clk 0:01:26]} 42. Re3 {[%clk 0:02:20]}  Rb2 {[%clk 0:01:26]} 43. h4 {[%clk 0:02:20]}  Rb4 {[%clk 0:01:26]} 44. Re4 {[%clk 0:02:20]}  Rb3+ {[%clk 0:01:26]} 45. Re3 {[%clk 0:02:20]}  Rb5 {[%clk 0:01:26]} 46. Kg4 {[%clk 0:02:19]}  Rb4+ {[%clk 0:01:25]} 47. Kh3 {[%clk 0:02:19]}  h5 {[%clk 0:01:23]} 48. Re5 {[%clk 0:02:18]}  g6 {[%clk 0:01:22]} 49. Kg2 {[%clk 0:02:17]}  Kg7 {[%clk 0:01:22]} 50. Kf3 {[%clk 0:02:17]}  Kf6 {[%clk 0:01:22]} 51. Re4 {[%clk 0:02:17]}  Rb2 {[%clk 0:01:21]} 52. Rf4+ {[%clk 0:02:16]}  Kg7 {[%clk 0:01:20]} 53. Ra4 {[%clk 0:02:16]}  Rc2 {[%clk 0:01:17]} 54. Ra3 {[%clk 0:02:15]}  Rb2 {[%clk 0:01:17]} 55. Re3 {[%clk 0:02:15]}  Rb4 {[%clk 0:01:16]} 56. Re4 {[%clk 0:02:14]}  Rb3+ {[%clk 0:01:16]} 57. Re3 {[%clk 0:02:15]}  Rb2 {[%clk 0:01:17]} 58. Re2 {[%clk 0:02:15]}  Rb3+ {[%clk 0:01:16]} 59. Kf4 {[%clk 0:02:15]}  Rb4+ {[%clk 0:01:15]} 60. Re4 {[%clk 0:02:12]}  Rb5 {[%clk 0:01:14]} 61. Re5 {[%clk 0:02:07]}  Rb4+ {[%clk 0:01:14]} 62. Kf3 {[%clk 0:02:05]}  Ra4 {[%clk 0:01:13]} 63. Re4 {[%clk 0:02:05]}  Ra3+ {[%clk 0:01:11]} 64. Kg2 {[%clk 0:02:05]}  Rb3 {[%clk 0:01:10]} 65. Re7+ {[%clk 0:02:05]}  Kf6 {[%clk 0:01:10]} 66. Re3 {[%clk 0:02:06]}  Rb2 {[%clk 0:01:09]} 67. Rf3+ {[%clk 0:02:06]}  Kg7 {[%clk 0:01:09]} 68. Ra3 {[%clk 0:02:05]}  Rb4 {[%clk 0:01:08]} 69. Ra2 {[%clk 0:02:05]}  Rb3 {[%clk 0:01:08]} 70. Kf1 {[%clk 0:02:05]}  Rb4 {[%clk 0:01:08]} 71. Rc2 {[%clk 0:02:04]}  Rb1+ {[%clk 0:01:07]} 72. Ke2 {[%clk 0:02:04]}  Rb3 {[%clk 0:01:08]} 73. Rd2 {[%clk 0:02:04]}  Rc3 {[%clk 0:01:08]} 74. Rd3 {[%clk 0:02:04]}  Rc2+ {[%clk 0:01:07]} 75. Ke3 {[%clk 0:02:03]}  Rc4 {[%clk 0:01:07]} 76. Rd4 {[%clk 0:02:01]}  Rc2 {[%clk 0:01:07]} 77. f3 {[%clk 0:02:00]}  Rc3+ {[%clk 0:01:06]} 78. Kf4 {[%clk 0:01:59]}  Rc5 {[%clk 0:01:02]} 79. Rd7+ {[%clk 0:01:59]}  Kf6 {[%clk 0:00:59]} 80. Rd6+ {[%clk 0:01:59]}  Kf7 {[%clk 0:00:59]} 81. Rd4 {[%clk 0:01:55]}  Rf5+ {[%clk 0:00:56]} 82. Ke4 {[%clk 0:01:55]}  Ra5 {[%clk 0:00:56]} 83. Rd5 {[%clk 0:01:53]}  Ra4+ {[%clk 0:00:56]} 84. Ke3 {[%clk 0:01:53]}  Ra3+ {[%clk 0:00:56]} 85. Rd3 {[%clk 0:01:53]}  Ra4 {[%clk 0:00:56]} 86. Rb3 {[%clk 0:01:52]}  Kf6 {[%clk 0:00:56]} 87. Rb6+ {[%clk 0:01:51]}  Kf7 {[%clk 0:00:55]} 88. Kf2 {[%clk 0:01:49]}  Ra3 {[%clk 0:00:54]} 89. Kg2 {[%clk 0:01:49]}  Re3 {[%clk 0:00:54]} 90. f4 {[%clk 0:01:48]}  Rb3 {[%clk 0:00:53]} 91. Rd6 {[%clk 0:01:46]}  Rc3 {[%clk 0:00:47]} 92. Kf2 {[%clk 0:01:46]}  Ra3 {[%clk 0:00:47]} 93. Rd5 {[%clk 0:01:45]}  Rb3 {[%clk 0:00:47]} 94. f5 {[%clk 0:01:45]}  gxf5 {[%clk 0:00:46]} 95. Rxf5+ {[%clk 0:01:45]}  Kg6 {[%clk 0:00:46]} 96. Re5 {[%clk 0:01:43]}  Ra3 {[%clk 0:00:46]} 97. Re3 {[%clk 0:01:43]}  Ra2+ {[%clk 0:00:46]} 98. Kf3 {[%clk 0:01:43]}  Ra4 {[%clk 0:00:46]} 99. Re4 {[%clk 0:01:42]}  Ra3+ {[%clk 0:00:45]} 100. Kf4 {[%clk 0:01:43]}  Ra5 {[%clk 0:00:43]} 101. Re6+ {[%clk 0:01:41]}  Kf7 {[%clk 0:00:42]} 102. Re5 {[%clk 0:01:40]}  Ra4+ {[%clk 0:00:34]} 103. Re4 {[%clk 0:01:29]}  Ra5 {[%clk 0:00:33]} 104. Rb4 {[%clk 0:01:29]}  Kg6 {[%clk 0:00:30]} 105. Rb6+ {[%clk 0:01:29]}  Kg7 {[%clk 0:00:29]} 106. Re6 {[%clk 0:01:28]}  Kf7 {[%clk 0:00:24]} 107. Rd6 {[%clk 0:01:26]}  Kg7 {[%clk 0:00:23]} 108. Rc6 {[%clk 0:01:26]}  Kf7 {[%clk 0:00:22]} 109. Rb6 {[%clk 0:01:25]}  Kg7 {[%clk 0:00:22]} 110. Rb4 {[%clk 0:01:25]}  Kf7 {[%clk 0:00:22]} 111. Re4 {[%clk 0:01:25]}  Kg7 {[%clk 0:00:23]} 112. Re6 {[%clk 0:01:25]}  Kf7 {[%clk 0:00:23]} 1/2-1/2


[Site "https://www.chess.com"]

[Event "Titled Tuesday Blitz January 17 Late 2023"]
[White "Kuznecovs, Nikita"]
[Black "Cueto, Jonny"]
[WhiteFideId "11604557"]
[BlackFideId "3300145"]
[WhiteElo "2287"]
[BlackElo "2122"]
[Result "1-0"]
[Round "02"]
[TimeControl "180+2"]
[Date "2023.01.17"]
[WhiteClock "0:01:16"]
[BlackClock "0:00:02"]

1. Nf3 {[%clk 0:03:00]}  e6 {[%clk 0:02:59]} 2. e4 {[%clk 0:02:54]}  d5 {[%clk 0:02:58]} 3. d3 {[%clk 0:02:55]}  dxe4 {[%clk 0:02:58]} 4. dxe4 {[%clk 0:02:56]}  Qxd1+ {[%clk 0:02:58]} 5. Kxd1 {[%clk 0:02:56]}  Nf6 {[%clk 0:02:57]} 6. e5 {[%clk 0:02:50]}  Ng4 {[%clk 0:02:54]} 7. Be3 {[%clk 0:02:48]}  Nxe3+ {[%clk 0:02:50]} 8. fxe3 {[%clk 0:02:49]}  Bd7 {[%clk 0:02:50]} 9. Bd3 {[%clk 0:02:44]}  Bc6 {[%clk 0:02:47]} 10. Nbd2 {[%clk 0:02:45]}  Bc5 {[%clk 0:02:44]} 11. Ke2 {[%clk 0:02:45]}  Nd7 {[%clk 0:02:33]} 12. Nb3 {[%clk 0:02:43]}  Bb6 {[%clk 0:02:33]} 13. Nbd4 {[%clk 0:02:41]}  Nc5 {[%clk 0:02:12]} 14. Nxc6 {[%clk 0:02:38]}  bxc6 {[%clk 0:02:13]} 15. Rhd1 {[%clk 0:02:15]}  h6 {[%clk 0:02:06]} 16. a4 {[%clk 0:02:06]}  a5 {[%clk 0:01:49]} 17. Nd2 {[%clk 0:02:06]}  Nxd3 {[%clk 0:01:25]} 18. cxd3 {[%clk 0:02:06]}  Bc5 {[%clk 0:01:26]} 19. Ne4 {[%clk 0:02:01]}  Bb4 {[%clk 0:01:24]} 20. Rac1 {[%clk 0:02:01]}  Kd7 {[%clk 0:01:22]} 21. Rc4 {[%clk 0:01:58]}  Rhb8 {[%clk 0:01:02]} 22. Rf1 {[%clk 0:01:56]}  Be7 {[%clk 0:00:46]} 23. Rxf7 {[%clk 0:01:54]}  Rxb2+ {[%clk 0:00:46]} 24. Kf3 {[%clk 0:01:39]}  Rf8 {[%clk 0:00:40]} 25. Nc5+ {[%clk 0:01:40]}  Ke8 {[%clk 0:00:17]} 26. Rxf8+ {[%clk 0:01:39]}  Bxf8 {[%clk 0:00:16]} 27. Nxe6 {[%clk 0:01:40]}  Ra2 {[%clk 0:00:04]} 28. Nxf8 {[%clk 0:01:19]}  Kxf8 {[%clk 0:00:04]} 29. Rxc6 {[%clk 0:01:19]}  Rxa4 {[%clk 0:00:04]} 30. Rxc7 {[%clk 0:01:20]}  Ra1 {[%clk 0:00:04]} 31. d4 {[%clk 0:01:17]}  a4 {[%clk 0:00:04]} 32. Ra7 {[%clk 0:01:18]}  a3 {[%clk 0:00:04]} 33. Ke4 {[%clk 0:01:18]}  a2 {[%clk 0:00:04]} 34. d5 {[%clk 0:01:18]}  Ke8 {[%clk 0:00:03]} 35. e6 {[%clk 0:01:15]}  g5 {[%clk 0:00:02]} 36. d6 {[%clk 0:01:16]}  Re1 {[%clk 0:00:02]} 37. Ra8# {[%clk 0:01:16]} 1-0


[Site "https://www.chess.com"]

[Event "Titled Tuesday Blitz January 17 Late 2023"]
[White "Gasparyan, David"]
[Black "Castellanos Hernandez, Emilio Au"]
[WhiteFideId "13311980"]
[BlackFideId "5114179"]
[WhiteElo "2142"]
[BlackElo "1964"]
[Result "1-0"]
[Round "02"]
[TimeControl "180+2"]
[Date "2023.01.17"]
[WhiteClock "0:00:27"]
[BlackClock "0:00:14"]

1. e4 {[%clk 0:03:00]}  c6 {[%clk 0:02:52]} 2. d3 {[%clk 0:02:56]}  d5 {[%clk 0:02:52]} 3. Nd2 {[%clk 0:02:56]}  e5 {[%clk 0:02:49]} 4. g3 {[%clk 0:02:56]}  Bd6 {[%clk 0:02:48]} 5. Bg2 {[%clk 0:02:55]}  Ne7 {[%clk 0:02:48]} 6. Ne2 {[%clk 0:02:53]}  O-O {[%clk 0:02:46]} 7. O-O {[%clk 0:02:54]}  f5 {[%clk 0:02:45]} 8. c3 {[%clk 0:02:33]}  Ng6 {[%clk 0:02:33]} 9. exd5 {[%clk 0:02:28]}  f4 {[%clk 0:02:30]} 10. dxc6 {[%clk 0:02:21]}  Nxc6 {[%clk 0:02:27]} 11. Qb3+ {[%clk 0:01:53]}  Kh8 {[%clk 0:02:25]} 12. Be4 {[%clk 0:01:48]}  Bg4 {[%clk 0:02:11]} 13. Nf3 {[%clk 0:01:43]}  fxg3 {[%clk 0:02:00]} 14. fxg3 {[%clk 0:01:43]}  Bc5+ {[%clk 0:01:59]} 15. Kg2 {[%clk 0:01:41]}  Bxf3+ {[%clk 0:01:54]} 16. Rxf3 {[%clk 0:01:40]}  Rxf3 {[%clk 0:01:54]} 17. Bxf3 {[%clk 0:01:36]}  Rb8 {[%clk 0:01:15]} 18. Qc4 {[%clk 0:01:29]}  Bb6 {[%clk 0:01:11]} 19. Bd2 {[%clk 0:01:21]}  Qf6 {[%clk 0:00:59]} 20. Rf1 {[%clk 0:01:18]}  Rf8 {[%clk 0:00:58]} 21. Qg4 {[%clk 0:01:07]}  Qd6 {[%clk 0:00:54]} 22. Be4 {[%clk 0:01:05]}  Rxf1 {[%clk 0:00:45]} 23. Kxf1 {[%clk 0:01:06]}  Nce7 {[%clk 0:00:46]} 24. Kg2 {[%clk 0:00:58]}  a5 {[%clk 0:00:43]} 25. Qf3 {[%clk 0:00:53]}  Nc6 {[%clk 0:00:34]} 26. Be3 {[%clk 0:00:52]}  Bd8 {[%clk 0:00:31]} 27. Qf5 {[%clk 0:00:40]}  Bf6 {[%clk 0:00:27]} 28. Bg5 {[%clk 0:00:38]}  Nce7 {[%clk 0:00:24]} 29. Qg4 {[%clk 0:00:39]}  Qb6 {[%clk 0:00:19]} 30. Bxf6 {[%clk 0:00:36]}  gxf6 {[%clk 0:00:20]} 31. b3 {[%clk 0:00:34]}  a4 {[%clk 0:00:21]} 32. b4 {[%clk 0:00:33]}  Qe3 {[%clk 0:00:20]} 33. Qf3 {[%clk 0:00:32]}  Qd2 {[%clk 0:00:20]} 34. h4 {[%clk 0:00:31]}  f5 {[%clk 0:00:20]} 35. Bxb7 {[%clk 0:00:30]}  f4 {[%clk 0:00:17]} 36. h5 {[%clk 0:00:30]}  Nf8 {[%clk 0:00:13]} 37. Qe4 {[%clk 0:00:30]}  Ne6 {[%clk 0:00:13]} 38. Qxe5+ {[%clk 0:00:30]}  Ng7 {[%clk 0:00:12]} 39. h6 {[%clk 0:00:30]}  Nf5 {[%clk 0:00:12]} 40. hxg7+ {[%clk 0:00:28]}  Nxg7 {[%clk 0:00:13]} 41. Qb8+ {[%clk 0:00:27]}  Ne8 {[%clk 0:00:14]} 42. Qxe8+ {[%clk 0:00:28]}  Kg7 {[%clk 0:00:15]} 43. Qe5+ {[%clk 0:00:28]}  Kg6 {[%clk 0:00:15]} 44. gxf4 {[%clk 0:00:27]}  Qe1 {[%clk 0:00:15]} 45. Be4+ {[%clk 0:00:26]}  Kh6 {[%clk 0:00:14]} 46. Qf6+ {[%clk 0:00:26]}  Kh5 {[%clk 0:00:14]} 47. Bf3# {[%clk 0:00:27]} 1-0


[Site "https://www.chess.com"]

[Event "Titled Tuesday Blitz January 17 Late 2023"]
[White "Jenkins, Drake"]
[Black "Novikov, Evgenij"]
[WhiteFideId "2022397"]
[BlackFideId "4125380"]
[WhiteElo "2130"]
[BlackElo "2276"]
[Result "1-0"]
[Round "02"]
[TimeControl "180+2"]
[Date "2023.01.17"]
[WhiteClock "0:00:41"]
[BlackClock "0:00:01"]

1. Nf3 {[%clk 0:03:00]}  d6 {[%clk 0:02:59]} 2. c4 {[%clk 0:02:59]}  Nf6 {[%clk 0:03:00]} 3. Nc3 {[%clk 0:03:00]}  g6 {[%clk 0:03:00]} 4. g3 {[%clk 0:03:00]}  Bg7 {[%clk 0:03:01]} 5. Bg2 {[%clk 0:03:01]}  O-O {[%clk 0:03:01]} 6. O-O {[%clk 0:03:01]}  c6 {[%clk 0:03:02]} 7. Rb1 {[%clk 0:03:01]}  a5 {[%clk 0:02:59]} 8. a3 {[%clk 0:03:00]}  Bf5 {[%clk 0:02:56]} 9. d3 {[%clk 0:03:00]}  Qc8 {[%clk 0:02:56]} 10. Re1 {[%clk 0:02:59]}  Ne8 {[%clk 0:02:41]} 11. Qc2 {[%clk 0:02:55]}  Na6 {[%clk 0:02:26]} 12. b4 {[%clk 0:02:55]}  axb4 {[%clk 0:02:27]} 13. axb4 {[%clk 0:02:55]}  Bh3 {[%clk 0:02:22]} 14. b5 {[%clk 0:02:52]}  Nc5 {[%clk 0:02:16]} 15. bxc6 {[%clk 0:02:45]}  bxc6 {[%clk 0:02:17]} 16. Bh1 {[%clk 0:02:41]}  Nc7 {[%clk 0:02:13]} 17. Be3 {[%clk 0:02:24]}  N5e6 {[%clk 0:02:00]} 18. Ng5 {[%clk 0:02:21]}  Nxg5 {[%clk 0:01:58]} 19. Bxg5 {[%clk 0:02:22]}  f6 {[%clk 0:01:35]} 20. Bd2 {[%clk 0:02:06]}  Ra6 {[%clk 0:01:33]} 21. Ra1 {[%clk 0:01:58]}  Bd7 {[%clk 0:01:21]} 22. Qb2 {[%clk 0:01:37]}  Rxa1 {[%clk 0:01:19]} 23. Rxa1 {[%clk 0:01:35]}  Qb8 {[%clk 0:01:16]} 24. Qa3 {[%clk 0:01:22]}  f5 {[%clk 0:01:04]} 25. Rb1 {[%clk 0:01:21]}  Qa8 {[%clk 0:01:04]} 26. Qxa8 {[%clk 0:01:15]}  Rxa8 {[%clk 0:01:05]} 27. Rb7 {[%clk 0:01:14]}  Rc8 {[%clk 0:00:59]} 28. Na4 {[%clk 0:01:08]}  Bd4 {[%clk 0:00:23]} 29. e3 {[%clk 0:01:07]}  Bc5 {[%clk 0:00:20]} 30. d4 {[%clk 0:01:07]}  Be6 {[%clk 0:00:06]} 31. dxc5 {[%clk 0:01:03]}  Bxc4 {[%clk 0:00:06]} 32. Nb6 {[%clk 0:01:01]}  Ba6 {[%clk 0:00:03]} 33. Nxc8 {[%clk 0:00:57]}  Bxb7 {[%clk 0:00:03]} 34. Nxe7+ {[%clk 0:00:57]}  Kf7 {[%clk 0:00:03]} 35. cxd6 {[%clk 0:00:57]}  Ne6 {[%clk 0:00:03]} 36. Nxc6 {[%clk 0:00:55]}  Ke8 {[%clk 0:00:01]} 37. Nd4 {[%clk 0:00:51]}  Bxh1 {[%clk 0:00:02]} 38. Nxe6 {[%clk 0:00:48]}  Be4 {[%clk 0:00:01]} 39. Ng5 {[%clk 0:00:48]}  Bd5 {[%clk 0:00:01]} 40. Nxh7 {[%clk 0:00:46]}  Kd7 {[%clk 0:00:01]} 41. Bb4 {[%clk 0:00:46]}  Ke6 {[%clk 0:00:01]} 42. Nf8+ {[%clk 0:00:44]}  Kf7 {[%clk 0:00:01]} 43. d7 {[%clk 0:00:41]} 1-0


[Site "https://www.chess.com"]

[Event "Titled Tuesday Blitz January 17 Late 2023"]
[White "reevecanada"]
[Black "qiaohu_henry"]
[WhiteElo "2474"]
[BlackElo "2229"]
[Result "1-0"]
[Round "02"]
[TimeControl "180+2"]
[Date "2023.01.17"]
[WhiteClock "0:01:21"]
[BlackClock "0:00:26"]

1. Nf3 {[%clk 0:02:51]}  Nf6 {[%clk 0:02:56]} 2. d4 {[%clk 0:02:52]}  d5 {[%clk 0:02:55]} 3. e3 {[%clk 0:02:53]}  c6 {[%clk 0:02:50]} 4. b3 {[%clk 0:02:53]}  g6 {[%clk 0:02:47]} 5. Bb2 {[%clk 0:02:53]}  Bg7 {[%clk 0:02:47]} 6. Nbd2 {[%clk 0:02:54]}  O-O {[%clk 0:02:47]} 7. Bd3 {[%clk 0:02:54]}  Re8 {[%clk 0:02:39]} 8. Ne5 {[%clk 0:02:54]}  Nfd7 {[%clk 0:02:36]} 9. h4 {[%clk 0:02:53]}  Nxe5 {[%clk 0:02:33]} 10. dxe5 {[%clk 0:02:52]}  h5 {[%clk 0:02:33]} 11. f4 {[%clk 0:02:51]}  Bg4 {[%clk 0:02:32]} 12. Be2 {[%clk 0:02:51]}  Qd7 {[%clk 0:02:30]} 13. Bxg4 {[%clk 0:02:50]}  Qxg4 {[%clk 0:02:30]} 14. Qxg4 {[%clk 0:02:49]}  hxg4 {[%clk 0:02:31]} 15. h5 {[%clk 0:02:49]}  g5 {[%clk 0:02:18]} 16. h6 {[%clk 0:02:43]}  Bh8 {[%clk 0:02:18]} 17. h7+ {[%clk 0:02:26]}  Kf8 {[%clk 0:02:15]} 18. fxg5 {[%clk 0:02:24]}  Nd7 {[%clk 0:02:14]} 19. Rf1 {[%clk 0:02:23]}  Nxe5 {[%clk 0:02:01]} 20. Rf5 {[%clk 0:02:17]}  Ng6 {[%clk 0:01:55]} 21. Bxh8 {[%clk 0:02:15]}  Nxh8 {[%clk 0:01:56]} 22. O-O-O {[%clk 0:02:13]}  Kg7 {[%clk 0:01:50]} 23. Rf4 {[%clk 0:02:12]}  Kxh7 {[%clk 0:01:47]} 24. Rxg4 {[%clk 0:02:05]}  e5 {[%clk 0:01:38]} 25. e4 {[%clk 0:01:59]}  Rad8 {[%clk 0:01:34]} 26. Rh1+ {[%clk 0:01:50]}  Kg7 {[%clk 0:01:31]} 27. Rgh4 {[%clk 0:01:49]}  Ng6 {[%clk 0:01:27]} 28. Rh6 {[%clk 0:01:45]}  Nf4 {[%clk 0:01:24]} 29. Rh7+ {[%clk 0:01:43]}  Kf8 {[%clk 0:00:59]} 30. Rf1 {[%clk 0:01:39]}  Kg8 {[%clk 0:00:56]} 31. Rh2 {[%clk 0:01:35]}  Re6 {[%clk 0:00:51]} 32. g3 {[%clk 0:01:33]}  Ng6 {[%clk 0:00:51]} 33. Rhf2 {[%clk 0:01:32]}  Rd7 {[%clk 0:00:49]} 34. c4 {[%clk 0:01:31]}  dxc4 {[%clk 0:00:47]} 35. Nxc4 {[%clk 0:01:31]}  b5 {[%clk 0:00:46]} 36. Ne3 {[%clk 0:01:30]}  Red6 {[%clk 0:00:43]} 37. Nf5 {[%clk 0:01:30]}  Rd3 {[%clk 0:00:43]} 38. Nh6+ {[%clk 0:01:29]}  Kf8 {[%clk 0:00:32]} 39. Rxf7+ {[%clk 0:01:27]}  Rxf7 {[%clk 0:00:31]} 40. Rxf7+ {[%clk 0:01:27]}  Ke8 {[%clk 0:00:31]} 41. Rg7 {[%clk 0:01:28]}  Ne7 {[%clk 0:00:29]} 42. g4 {[%clk 0:01:26]}  Re3 {[%clk 0:00:28]} 43. Rxe7+ {[%clk 0:01:26]}  Kxe7 {[%clk 0:00:23]} 44. Nf5+ {[%clk 0:01:25]}  Kf7 {[%clk 0:00:23]} 45. Nxe3 {[%clk 0:01:26]}  Kg6 {[%clk 0:00:24]} 46. b4 {[%clk 0:01:24]}  Kxg5 {[%clk 0:00:25]} 47. Kd2 {[%clk 0:01:23]}  Kf4 {[%clk 0:00:26]} 48. Ke2 {[%clk 0:01:21]}  Kxe4 {[%clk 0:00:26]} 49. g5 {[%clk 0:01:21]} 1-0


[Site "https://www.chess.com"]

[Event "Titled Tuesday Blitz January 17 Late 2023"]
[White "Cepo, Toni"]
[Black "Rojas Salas, Steven"]
[WhiteFideId "4675916"]
[BlackFideId "3819434"]
[WhiteElo "2145"]
[BlackElo "2217"]
[Result "0-1"]
[Round "02"]
[TimeControl "180+2"]
[Date "2023.01.17"]
[WhiteClock "0:00:57"]
[BlackClock "0:00:54"]

1. e4 {[%clk 0:02:58]}  e5 {[%clk 0:02:59]} 2. Nf3 {[%clk 0:02:58]}  Nc6 {[%clk 0:03:00]} 3. Bb5 {[%clk 0:02:57]}  a6 {[%clk 0:03:00]} 4. Ba4 {[%clk 0:02:54]}  Nf6 {[%clk 0:03:00]} 5. O-O {[%clk 0:02:53]}  b5 {[%clk 0:03:01]} 6. Bb3 {[%clk 0:02:49]}  Bc5 {[%clk 0:03:01]} 7. c3 {[%clk 0:02:47]}  d6 {[%clk 0:03:02]} 8. d4 {[%clk 0:02:46]}  Bb6 {[%clk 0:03:02]} 9. Bg5 {[%clk 0:02:43]}  O-O {[%clk 0:03:02]} 10. h3 {[%clk 0:02:38]}  h6 {[%clk 0:03:02]} 11. Bxf6 {[%clk 0:02:34]}  Qxf6 {[%clk 0:03:03]} 12. d5 {[%clk 0:02:34]}  Ne7 {[%clk 0:02:57]} 13. Nbd2 {[%clk 0:02:33]}  Ng6 {[%clk 0:02:54]} 14. a4 {[%clk 0:02:31]}  Nf4 {[%clk 0:02:50]} 15. Kh2 {[%clk 0:02:23]}  Qg6 {[%clk 0:02:34]} 16. Nh4 {[%clk 0:02:18]}  Qg5 {[%clk 0:02:34]} 17. Ndf3 {[%clk 0:02:17]}  Qf6 {[%clk 0:02:34]} 18. axb5 {[%clk 0:02:16]}  g5 {[%clk 0:02:32]} 19. Nf5 {[%clk 0:02:13]}  Bxf5 {[%clk 0:02:33]} 20. exf5 {[%clk 0:02:14]}  axb5 {[%clk 0:02:14]} 21. Rxa8 {[%clk 0:02:09]}  Rxa8 {[%clk 0:02:15]} 22. Bc2 {[%clk 0:02:09]}  h5 {[%clk 0:02:07]} 23. g3 {[%clk 0:02:04]}  g4 {[%clk 0:01:51]} 24. gxf4 {[%clk 0:02:03]}  gxf3 {[%clk 0:01:52]} 25. Qxf3 {[%clk 0:02:03]}  Kf8 {[%clk 0:01:49]} 26. Qxh5 {[%clk 0:01:54]}  exf4 {[%clk 0:01:49]} 27. Qg4 {[%clk 0:01:40]}  Ke7 {[%clk 0:01:48]} 28. Qxf4 {[%clk 0:01:38]}  Ra2 {[%clk 0:01:36]} 29. Re1+ {[%clk 0:01:35]}  Kd8 {[%clk 0:01:35]} 30. Qe4 {[%clk 0:01:28]}  Qe5+ {[%clk 0:01:14]} 31. Qxe5 {[%clk 0:01:28]}  dxe5 {[%clk 0:01:15]} 32. Rb1 {[%clk 0:01:28]}  Bxf2 {[%clk 0:01:14]} 33. Bb3 {[%clk 0:01:27]}  Ra6 {[%clk 0:01:14]} 34. Rf1 {[%clk 0:01:24]}  Be3 {[%clk 0:01:14]} 35. h4 {[%clk 0:01:20]}  Rh6 {[%clk 0:01:13]} 36. Kg3 {[%clk 0:01:18]}  Bf4+ {[%clk 0:01:11]} 37. Kg4 {[%clk 0:01:18]}  Rh8 {[%clk 0:01:11]} 38. Ra1 {[%clk 0:01:13]}  Rg8+ {[%clk 0:01:10]} 39. Kf3 {[%clk 0:01:13]}  Rg3+ {[%clk 0:01:10]} 40. Kf2 {[%clk 0:01:14]}  Rh3 {[%clk 0:01:10]} 41. Ra8+ {[%clk 0:01:13]}  Kd7 {[%clk 0:01:11]} 42. d6 {[%clk 0:01:12]}  Kxd6 {[%clk 0:01:05]} 43. Rd8+ {[%clk 0:01:10]}  Kc5 {[%clk 0:01:04]} 44. Rd7 {[%clk 0:01:08]}  c6 {[%clk 0:01:03]} 45. Rxf7 {[%clk 0:01:08]}  Rxh4 {[%clk 0:01:04]} 46. Rf8 {[%clk 0:01:06]}  e4 {[%clk 0:01:04]} 47. f6 {[%clk 0:01:06]}  Rh2+ {[%clk 0:01:04]} 48. Kg1 {[%clk 0:01:05]}  Rxb2 {[%clk 0:01:04]} 49. Bd1 {[%clk 0:00:58]}  Rb1 {[%clk 0:00:57]} 50. Rd8 {[%clk 0:00:58]}  Bd6 {[%clk 0:00:55]} 51. Rxd6 {[%clk 0:00:57]}  Kxd6 {[%clk 0:00:54]} 0-1


[Site "https://www.chess.com"]

[Event "Titled Tuesday Blitz January 17 Late 2023"]
[White "Andrews, Todd"]
[Black "Stanisz, Patryk"]
[WhiteFideId "2012456"]
[BlackFideId "1123106"]
[WhiteElo "2220"]
[BlackElo "2161"]
[Result "1-0"]
[Round "02"]
[TimeControl "180+2"]
[Date "2023.01.17"]
[WhiteClock "0:00:50"]
[BlackClock "0:00:07"]

1. e4 {[%clk 0:03:00]}  c5 {[%clk 0:02:54]} 2. Nf3 {[%clk 0:03:00]}  Nc6 {[%clk 0:02:54]} 3. d3 {[%clk 0:03:01]}  g6 {[%clk 0:02:53]} 4. g3 {[%clk 0:03:01]}  Bg7 {[%clk 0:02:53]} 5. Bg2 {[%clk 0:03:02]}  d6 {[%clk 0:02:54]} 6. O-O {[%clk 0:03:03]}  Rb8 {[%clk 0:02:54]} 7. Re1 {[%clk 0:03:00]}  e6 {[%clk 0:02:52]} 8. a4 {[%clk 0:02:56]}  Nge7 {[%clk 0:02:51]} 9. c3 {[%clk 0:02:54]}  O-O {[%clk 0:02:51]} 10. d4 {[%clk 0:02:54]}  b6 {[%clk 0:02:43]} 11. Bg5 {[%clk 0:02:47]}  h6 {[%clk 0:02:40]} 12. Be3 {[%clk 0:02:47]}  Bb7 {[%clk 0:02:39]} 13. Qd2 {[%clk 0:02:43]}  Kh7 {[%clk 0:02:38]} 14. Na3 {[%clk 0:02:42]}  a6 {[%clk 0:02:38]} 15. h4 {[%clk 0:02:39]}  Na5 {[%clk 0:02:35]} 16. Qd3 {[%clk 0:02:31]}  c4 {[%clk 0:01:41]} 17. Qc2 {[%clk 0:02:21]}  Qc7 {[%clk 0:01:34]} 18. h5 {[%clk 0:02:20]}  Rbe8 {[%clk 0:01:15]} 19. hxg6+ {[%clk 0:02:06]}  fxg6 {[%clk 0:01:16]} 20. Nd2 {[%clk 0:02:03]}  Qc6 {[%clk 0:00:57]} 21. Kh2 {[%clk 0:01:37]}  Rf7 {[%clk 0:00:49]} 22. Rh1 {[%clk 0:01:36]}  Ref8 {[%clk 0:00:45]} 23. Kg1 {[%clk 0:01:36]}  Nf5 {[%clk 0:00:38]} 24. Bf4 {[%clk 0:01:17]}  e5 {[%clk 0:00:27]} 25. d5 {[%clk 0:01:16]}  Qc5 {[%clk 0:00:23]} 26. exf5 {[%clk 0:01:11]}  exf4 {[%clk 0:00:18]} 27. fxg6+ {[%clk 0:01:11]}  Kg8 {[%clk 0:00:19]} 28. gxf7+ {[%clk 0:01:11]}  Rxf7 {[%clk 0:00:20]} 29. Ne4 {[%clk 0:01:09]}  Qc7 {[%clk 0:00:12]} 30. Re1 {[%clk 0:01:02]}  fxg3 {[%clk 0:00:12]} 31. Nxg3 {[%clk 0:01:02]}  Qc5 {[%clk 0:00:10]} 32. Re8+ {[%clk 0:01:00]}  Rf8 {[%clk 0:00:10]} 33. Rxf8+ {[%clk 0:01:00]}  Kxf8 {[%clk 0:00:10]} 34. Qf5+ {[%clk 0:00:59]}  Kg8 {[%clk 0:00:11]} 35. Qe6+ {[%clk 0:00:57]}  Kf8 {[%clk 0:00:07]} 36. Nf5 {[%clk 0:00:55]}  Qc7 {[%clk 0:00:07]} 37. Nxd6 {[%clk 0:00:50]} 1-0


[Site "https://www.chess.com"]